[Event "Late-Titled-Tuesday-Blitz-October-17-2023"]
[Site "Chess.com"]
[Date "2023.10.17"]
[Round "5"]
[White "WilliamAlfaroCaracas"]
[Black "sorch29"]
[Result "0-1"]
[WhiteElo "2192"]
[BlackElo "2395"]
[TimeControl "180+1"]
[EndTime "14:54:46 PDT"]
[Termination "sorch29 won on time"]

1. e4 {[%clk 0:03:00.9]} 1... c5 {[%clk 0:02:59.2]} 2. Nf3 {[%clk 0:03:01.1]}
2... e6 {[%clk 0:02:58.9]} 3. d4 {[%clk 0:03:01.3]} 3... cxd4 {[%clk 0:02:58.3]}
4. Nxd4 {[%clk 0:03:01.5]} 4... Nc6 {[%clk 0:02:58.5]} 5. Nc3 {[%clk 0:02:58.5]}
5... Qc7 {[%clk 0:02:58.3]} 6. Be3 {[%clk 0:02:51.1]} 6... a6 {[%clk 0:02:58.1]}
7. Be2 {[%clk 0:02:42.8]} 7... Nf6 {[%clk 0:02:56.9]} 8. O-O {[%clk 0:02:37.8]}
8... Be7 {[%clk 0:02:56.6]} 9. f4 {[%clk 0:02:33.9]} 9... d6 {[%clk 0:02:55.6]}
10. Qd2 {[%clk 0:02:28]} 10... O-O {[%clk 0:02:54.6]} 11. Kh1 {[%clk 0:02:25.3]}
11... Nxd4 {[%clk 0:02:41.9]} 12. Bxd4 {[%clk 0:02:20.5]} 12... b5 {[%clk
0:02:25.4]} 13. e5 {[%clk 0:02:14.1]} 13... Nd7 {[%clk 0:02:16.3]} 14. Bf3
{[%clk 0:02:11.8]} 14... Rb8 {[%clk 0:01:27.3]} 15. exd6 {[%clk 0:02:00.1]}
15... Bxd6 {[%clk 0:01:27.4]} 16. Ne4 {[%clk 0:01:57.3]} 16... Bxf4 {[%clk
0:01:25.9]} 17. Qf2 {[%clk 0:01:35.2]} 17... e5 {[%clk 0:00:51.9]} 18. Bc3
{[%clk 0:01:25.8]} 18... f5 {[%clk 0:00:47.4]} 19. Ng3 {[%clk 0:01:16.6]} 19...
e4 {[%clk 0:00:40.5]} 20. Qd4 {[%clk 0:01:04]} 20... Nf6 {[%clk 0:00:15.8]} 21.
Nh5 {[%clk 0:00:32.4]} 21... exf3 {[%clk 0:00:12.8]} 22. Nxf4 {[%clk 0:00:31.3]}
22... fxg2+ {[%clk 0:00:11.2]} 23. Nxg2 {[%clk 0:00:30.5]} 23... Bb7 {[%clk
0:00:11.1]} 24. Rxf5 {[%clk 0:00:17.1]} 24... Rbd8 {[%clk 0:00:10.7]} 25. Qf2
{[%clk 0:00:14.7]} 25... Ne4 {[%clk 0:00:10]} 26. Rxf8+ {[%clk 0:00:08]} 26...
Rxf8 {[%clk 0:00:10.6]} 27. Qd4 {[%clk 0:00:06.6]} 27... Nf2+ {[%clk 0:00:08.1]}
28. Kg1 {[%clk 0:00:06.1]} 28... Nh3+ {[%clk 0:00:08.8]} 29. Kh1 {[%clk
0:00:06.1]} 29... Nf2+ {[%clk 0:00:08.7]} 30. Kg1 {[%clk 0:00:06.1]} 30... Nh3+
{[%clk 0:00:09]} 31. Kh1 {[%clk 0:00:06.4]} 31... Nf4 {[%clk 0:00:09.7]} 0-1

[Event "Late-Titled-Tuesday-Blitz-October-17-2023"]
[Site "Chess.com"]
[Date "2023.10.17"]
[Round "5"]
[White "Bauman_Guy"]
[Black "djano"]
[Result "1-0"]
[WhiteElo "2873"]
[BlackElo "2675"]
[TimeControl "180+1"]
[EndTime "14:54:57 PDT"]
[Termination "Bauman_Guy won on time"]

1. e4 {[%clk 0:03:00.9]} 1... c5 {[%clk 0:02:59.7]} 2. Nf3 {[%clk 0:03:01.2]}
2... Nc6 {[%clk 0:02:59.9]} 3. d4 {[%clk 0:03:01.9]} 3... cxd4 {[%clk
0:03:00.8]} 4. Nxd4 {[%clk 0:03:02.6]} 4... g6 {[%clk 0:03:01.3]} 5. c4 {[%clk
0:03:02.8]} 5... Bg7 {[%clk 0:02:59.2]} 6. Be3 {[%clk 0:03:02.7]} 6... Qb6
{[%clk 0:02:59.8]} 7. Nb3 {[%clk 0:03:02.6]} 7... Qd8 {[%clk 0:02:58.6]} 8. Nc3
{[%clk 0:03:02.5]} 8... Bxc3+ {[%clk 0:02:59.2]} 9. bxc3 {[%clk 0:03:03.4]} 9...
d6 {[%clk 0:02:59.2]} 10. c5 {[%clk 0:03:03.1]} 10... Nf6 {[%clk 0:02:53.3]} 11.
f3 {[%clk 0:03:01.9]} 11... d5 {[%clk 0:02:50.2]} 12. Qc2 {[%clk 0:02:48.2]}
12... dxe4 {[%clk 0:02:43.5]} 13. fxe4 {[%clk 0:02:49.1]} 13... Ng4 {[%clk
0:02:37.5]} 14. Bf4 {[%clk 0:02:48.3]} 14... O-O {[%clk 0:02:25.3]} 15. h3
{[%clk 0:02:31.3]} 15... e5 {[%clk 0:02:16.2]} 16. Bg3 {[%clk 0:02:31.6]} 16...
Ne3 {[%clk 0:02:00.1]} 17. Qf2 {[%clk 0:02:31.2]} 17... Nxf1 {[%clk 0:01:51]}
18. Rxf1 {[%clk 0:02:32.1]} 18... f5 {[%clk 0:01:50.4]} 19. Rd1 {[%clk
0:02:27.7]} 19... Qe8 {[%clk 0:01:43.8]} 20. exf5 {[%clk 0:02:14.2]} 20... Bxf5
{[%clk 0:01:44.7]} 21. Qe3 {[%clk 0:02:13.2]} 21... Rd8 {[%clk 0:01:37.3]} 22.
Rf2 {[%clk 0:02:11.6]} 22... Rxd1+ {[%clk 0:01:30.2]} 23. Kxd1 {[%clk
0:02:12.5]} 23... Qe6 {[%clk 0:01:28.2]} 24. Kc1 {[%clk 0:02:08.6]} 24... Qc4
{[%clk 0:01:22.9]} 25. Kb2 {[%clk 0:02:02.5]} 25... a5 {[%clk 0:01:13.5]} 26.
Bxe5 {[%clk 0:00:49.3]} 26... a4 {[%clk 0:01:13.1]} 27. Bd6 {[%clk 0:00:45.1]}
27... Ra8 {[%clk 0:00:32.5]} 28. Nd2 {[%clk 0:00:32.8]} 28... a3+ {[%clk
0:00:30.7]} 29. Ka1 {[%clk 0:00:32.6]} 29... Qb5 {[%clk 0:00:29.3]} 30. Nb3
{[%clk 0:00:28.4]} 30... Na5 {[%clk 0:00:28.1]} 31. g4 {[%clk 0:00:23.1]} 31...
Nxb3+ {[%clk 0:00:24.4]} 32. axb3 {[%clk 0:00:23.2]} 32... Re8 {[%clk
0:00:21.7]} 33. Qd2 {[%clk 0:00:17.3]} 33... Qxb3 {[%clk 0:00:16.6]} 34. gxf5
{[%clk 0:00:12.6]} 34... a2 {[%clk 0:00:17]} 35. Rf1 {[%clk 0:00:07.9]} 35...
Qc4 {[%clk 0:00:10.3]} 36. Qxa2 {[%clk 0:00:07.8]} 1-0

[Event "Late-Titled-Tuesday-Blitz-October-17-2023"]
[Site "Chess.com"]
[Date "2023.10.17"]
[Round "5"]
[White "Hasangatin_Ramil"]
[Black "Cristi_Coca"]
[Result "1-0"]
[WhiteElo "2719"]
[BlackElo "2370"]
[TimeControl "180+1"]
[EndTime "14:55:04 PDT"]
[Termination "Hasangatin_Ramil won on time"]

1. e4 {[%clk 0:03:00.9]} 1... c5 {[%clk 0:02:59.6]} 2. Nf3 {[%clk 0:03:01]} 2...
e6 {[%clk 0:03:00.2]} 3. g3 {[%clk 0:03:00.7]} 3... Nc6 {[%clk 0:02:59.7]} 4.
Bg2 {[%clk 0:03:00.7]} 4... a6 {[%clk 0:03:00.4]} 5. O-O {[%clk 0:03:00.5]} 5...
b5 {[%clk 0:03:00.5]} 6. c3 {[%clk 0:03:00.9]} 6... Bb7 {[%clk 0:02:59.4]} 7. d4
{[%clk 0:03:00.8]} 7... cxd4 {[%clk 0:02:58.7]} 8. cxd4 {[%clk 0:03:01.7]} 8...
Nf6 {[%clk 0:02:50.6]} 9. d5 {[%clk 0:03:01.7]} 9... Na5 {[%clk 0:02:40.6]} 10.
Re1 {[%clk 0:02:50.8]} 10... Bb4 {[%clk 0:02:36.5]} 11. Bd2 {[%clk 0:02:42.9]}
11... Bxd2 {[%clk 0:02:34.9]} 12. Nbxd2 {[%clk 0:02:42.8]} 12... O-O {[%clk
0:02:33.7]} 13. b4 {[%clk 0:02:41.6]} 13... Nc4 {[%clk 0:02:31.3]} 14. Nxc4
{[%clk 0:02:41.6]} 14... bxc4 {[%clk 0:02:32.2]} 15. dxe6 {[%clk 0:02:21.3]}
15... dxe6 {[%clk 0:02:28.2]} 16. Qxd8 {[%clk 0:02:17.2]} 16... Rfxd8 {[%clk
0:02:27.3]} 17. Ne5 {[%clk 0:02:17.4]} 17... Rac8 {[%clk 0:02:21]} 18. f3 {[%clk
0:02:11.2]} 18... c3 {[%clk 0:02:17.6]} 19. Re2 {[%clk 0:02:08.7]} 19... c2
{[%clk 0:02:10.6]} 20. Ree1 {[%clk 0:02:01.8]} 20... Rd2 {[%clk 0:01:52.6]} 21.
Rac1 {[%clk 0:01:59.4]} 21... Rcd8 {[%clk 0:01:49.3]} 22. Bf1 {[%clk 0:01:37.6]}
22... Rd1 {[%clk 0:01:48.9]} 23. Kf2 {[%clk 0:01:29.7]} 23... R8d2+ {[%clk
0:01:26.2]} 24. Be2 {[%clk 0:01:28.9]} 24... Bxe4 {[%clk 0:00:48.1]} 25. Rexd1
{[%clk 0:01:04.6]} 25... cxd1=Q {[%clk 0:00:16.4]} 26. Rxd1 {[%clk 0:01:04.2]}
26... Rxd1 {[%clk 0:00:16.1]} 27. Bxd1 {[%clk 0:01:05.1]} 27... Bd5 {[%clk
0:00:16.4]} 28. a3 {[%clk 0:01:02.9]} 28... Kf8 {[%clk 0:00:15.5]} 29. Be2
{[%clk 0:01:02.7]} 29... Bb7 {[%clk 0:00:14.5]} 30. Nc4 {[%clk 0:01:00.7]} 30...
Ke7 {[%clk 0:00:13.5]} 31. Ke3 {[%clk 0:00:59]} 31... Nd5+ {[%clk 0:00:13.3]}
32. Kd4 {[%clk 0:00:59.1]} 32... Kd7 {[%clk 0:00:12.7]} 33. Ne5+ {[%clk
0:00:56.1]} 33... Ke7 {[%clk 0:00:13]} 34. f4 {[%clk 0:00:55.6]} 34... f6 {[%clk
0:00:12.8]} 35. Nd3 {[%clk 0:00:55.4]} 35... Kd7 {[%clk 0:00:12.3]} 36. Nc5+
{[%clk 0:00:55.5]} 36... Kc7 {[%clk 0:00:13]} 37. Nxe6+ {[%clk 0:00:55]} 37...
Kb6 {[%clk 0:00:11.1]} 38. Nxg7 {[%clk 0:00:50.7]} 38... Ne7 {[%clk 0:00:09.6]}
39. Bd3 {[%clk 0:00:49.1]} 39... a5 {[%clk 0:00:09.9]} 40. Nf5 {[%clk 0:00:43]}
40... Nc6+ {[%clk 0:00:08.7]} 41. Kc3 {[%clk 0:00:43.1]} 41... axb4+ {[%clk
0:00:08.9]} 42. axb4 {[%clk 0:00:44]} 42... h6 {[%clk 0:00:08.5]} 43. Nxh6
{[%clk 0:00:43.4]} 43... Ne7 {[%clk 0:00:07.1]} 44. Bc4 {[%clk 0:00:38.3]} 44...
Bg2 {[%clk 0:00:04.5]} 45. Ng8 {[%clk 0:00:37.9]} 45... Nf5 {[%clk 0:00:03.7]}
46. Nxf6 {[%clk 0:00:36.7]} 46... Ne3 {[%clk 0:00:03.7]} 47. g4 {[%clk
0:00:32.9]} 1-0

[Event "Late-Titled-Tuesday-Blitz-October-17-2023"]
[Site "Chess.com"]
[Date "2023.10.17"]
[Round "5"]
[White "victormago"]
[Black "JSlaby"]
[Result "1/2-1/2"]
[WhiteElo "2456"]
[BlackElo "2583"]
[TimeControl "180+1"]
[EndTime "14:55:12 PDT"]
[Termination "Game drawn by stalemate"]

1. d4 {[%clk 0:02:57.1]} 1... Nf6 {[%clk 0:02:59.1]} 2. c4 {[%clk 0:02:55.5]}
2... g6 {[%clk 0:02:58.9]} 3. Nc3 {[%clk 0:02:55.5]} 3... Bg7 {[%clk 0:02:59.3]}
4. e4 {[%clk 0:02:56]} 4... O-O {[%clk 0:02:58.9]} 5. Be2 {[%clk 0:02:56.3]}
5... d6 {[%clk 0:02:58.9]} 6. Bg5 {[%clk 0:02:56.8]} 6... c5 {[%clk 0:02:55.7]}
7. d5 {[%clk 0:02:56.2]} 7... a6 {[%clk 0:02:52.6]} 8. Qd2 {[%clk 0:02:51.5]}
8... b5 {[%clk 0:02:41.9]} 9. cxb5 {[%clk 0:02:51.6]} 9... axb5 {[%clk
0:02:40.8]} 10. Bxb5 {[%clk 0:02:51.7]} 10... Qa5 {[%clk 0:02:39.6]} 11. f3
{[%clk 0:02:45.8]} 11... Nbd7 {[%clk 0:02:23.1]} 12. Nge2 {[%clk 0:02:35.1]}
12... Ba6 {[%clk 0:02:21.7]} 13. Bxa6 {[%clk 0:02:26]} 13... Qxa6 {[%clk
0:02:18.9]} 14. O-O {[%clk 0:02:21.3]} 14... Rfb8 {[%clk 0:02:18.6]} 15. Rab1
{[%clk 0:02:18.8]} 15... Ne5 {[%clk 0:02:10.7]} 16. b3 {[%clk 0:02:16.6]} 16...
c4 {[%clk 0:02:10.8]} 17. Nd4 {[%clk 0:02:12.5]} 17... cxb3 {[%clk 0:02:05.3]}
18. axb3 {[%clk 0:02:12]} 18... Rc8 {[%clk 0:01:55.8]} 19. Rfd1 {[%clk
0:02:05.8]} 19... Qa5 {[%clk 0:01:30.7]} 20. Na4 {[%clk 0:01:59.3]} 20... Qxd2
{[%clk 0:01:23.7]} 21. Rxd2 {[%clk 0:01:58.6]} 21... Rab8 {[%clk 0:01:21.3]} 22.
f4 {[%clk 0:01:49.4]} 22... Nxe4 {[%clk 0:01:16.8]} 23. fxe5 {[%clk 0:01:42.6]}
23... Nxg5 {[%clk 0:01:13]} 24. Nc6 {[%clk 0:01:42.8]} 24... Rb7 {[%clk
0:01:10.1]} 25. Nb6 {[%clk 0:01:27.3]} 25... Re8 {[%clk 0:00:59.9]} 26. exd6
{[%clk 0:01:25.2]} 26... exd6 {[%clk 0:00:59.9]} 27. Nc4 {[%clk 0:01:25.5]}
27... Ne4 {[%clk 0:00:56.9]} 28. Re2 {[%clk 0:01:24.2]} 28... f5 {[%clk
0:00:57.2]} 29. Rbe1 {[%clk 0:01:22.2]} 29... Rxb3 {[%clk 0:00:55.2]} 30. Nxd6
{[%clk 0:01:18.1]} 30... Nxd6 {[%clk 0:00:56.1]} 31. Rxe8+ {[%clk 0:01:18.1]}
31... Nxe8 {[%clk 0:00:56.4]} 32. Rxe8+ {[%clk 0:01:18.3]} 32... Kf7 {[%clk
0:00:56.7]} 33. Re7+ {[%clk 0:01:18.7]} 33... Kf8 {[%clk 0:00:54.5]} 34. Rd7
{[%clk 0:01:11.1]} 34... Rd3 {[%clk 0:00:49]} 35. g3 {[%clk 0:01:10.8]} 35... h5
{[%clk 0:00:48.1]} 36. Kg2 {[%clk 0:01:08.1]} 36... g5 {[%clk 0:00:47.5]} 37.
Ne7 {[%clk 0:01:01.6]} 37... Rd2+ {[%clk 0:00:40.7]} 38. Kf1 {[%clk 0:01:00.2]}
38... Rxh2 {[%clk 0:00:38]} 39. Nxf5 {[%clk 0:00:58.1]} 39... Be5 {[%clk
0:00:37.6]} 40. Re7 {[%clk 0:00:55.1]} 40... Bxg3 {[%clk 0:00:35.3]} 41. Re6
{[%clk 0:00:50.1]} 41... Bf4 {[%clk 0:00:34.1]} 42. d6 {[%clk 0:00:48.3]} 42...
Rd2 {[%clk 0:00:34.2]} 43. Rh6 {[%clk 0:00:45.4]} 43... h4 {[%clk 0:00:29.6]}
44. Rh7 {[%clk 0:00:44.6]} 44... Kg8 {[%clk 0:00:27.4]} 45. Rd7 {[%clk
0:00:41.5]} 45... h3 {[%clk 0:00:26.7]} 46. Nh6+ {[%clk 0:00:41.6]} 46... Kf8
{[%clk 0:00:26.2]} 47. Rf7+ {[%clk 0:00:40.2]} 47... Ke8 {[%clk 0:00:26.7]} 48.
d7+ {[%clk 0:00:34.9]} 48... Rxd7 {[%clk 0:00:25.7]} 49. Rxd7 {[%clk 0:00:35.2]}
49... Kxd7 {[%clk 0:00:26]} 50. Ng4 {[%clk 0:00:35.4]} 50... Ke6 {[%clk
0:00:25.3]} 51. Kf2 {[%clk 0:00:35.2]} 51... Kf5 {[%clk 0:00:24.4]} 52. Kf3
{[%clk 0:00:35.6]} 52... h2 {[%clk 0:00:21.6]} 53. Nf2 {[%clk 0:00:35.8]} 53...
g4+ {[%clk 0:00:19.7]} 54. Kg2 {[%clk 0:00:36.1]} 54... g3 {[%clk 0:00:05.4]}
55. Nh1 {[%clk 0:00:35.8]} 55... Kg4 {[%clk 0:00:04.9]} 56. Nxg3 {[%clk
0:00:35]} 56... Bxg3 {[%clk 0:00:04.6]} 57. Kh1 {[%clk 0:00:35.4]} 57... Kh3
{[%clk 0:00:05.2]} 1/2-1/2

[Event "Late-Titled-Tuesday-Blitz-October-17-2023"]
[Site "Chess.com"]
[Date "2023.10.17"]
[Round "5"]
[White "Emp3rador"]
[Black "PapaieDudu"]
[Result "1-0"]
[WhiteElo "2536"]
[BlackElo "2374"]
[TimeControl "180+1"]
[EndTime "14:55:12 PDT"]
[Termination "Emp3rador won by resignation"]

1. e4 {[%clk 0:02:54]} 1... c5 {[%clk 0:02:59.1]} 2. Nf3 {[%clk 0:02:49.1]} 2...
d6 {[%clk 0:02:58.7]} 3. Bb5+ {[%clk 0:02:48.2]} 3... Nd7 {[%clk 0:02:55.8]} 4.
d4 {[%clk 0:02:47.7]} 4... cxd4 {[%clk 0:02:55.1]} 5. Qxd4 {[%clk 0:02:48.6]}
5... a6 {[%clk 0:02:52.8]} 6. Bxd7+ {[%clk 0:02:47.7]} 6... Qxd7 {[%clk
0:02:53.7]} 7. Nc3 {[%clk 0:02:47.5]} 7... e5 {[%clk 0:02:50.2]} 8. Qd3 {[%clk
0:02:47.4]} 8... Be7 {[%clk 0:02:41.2]} 9. Nd5 {[%clk 0:02:39]} 9... Bd8 {[%clk
0:02:37.1]} 10. Be3 {[%clk 0:02:36.4]} 10... b5 {[%clk 0:02:21.1]} 11. O-O-O
{[%clk 0:02:18.4]} 11... Bb7 {[%clk 0:02:13.6]} 12. Kb1 {[%clk 0:02:02.5]} 12...
Rc8 {[%clk 0:02:12.8]} 13. h3 {[%clk 0:01:53.4]} 13... Ne7 {[%clk 0:02:04.2]}
14. Nxe5 {[%clk 0:01:41.4]} 14... Qe6 {[%clk 0:01:59.4]} 15. Nf3 {[%clk
0:01:41.2]} 15... h6 {[%clk 0:01:57.7]} 16. Nd4 {[%clk 0:01:11.4]} 16... Qd7
{[%clk 0:01:55]} 17. Nxe7 {[%clk 0:01:09.1]} 17... Bxe7 {[%clk 0:01:53.5]} 18.
Nf5 {[%clk 0:01:07.1]} 18... Bf8 {[%clk 0:01:53.6]} 19. f3 {[%clk 0:01:04]}
19... g6 {[%clk 0:01:50.6]} 20. Nxd6+ {[%clk 0:01:03.7]} 20... Bxd6 {[%clk
0:01:50]} 21. Qxd6 {[%clk 0:01:04.6]} 21... Qxd6 {[%clk 0:01:50.1]} 22. Rxd6
{[%clk 0:01:05.4]} 22... Ke7 {[%clk 0:01:48.2]} 23. Rhd1 {[%clk 0:01:04.9]}
23... g5 {[%clk 0:01:44.2]} 24. Rb6 {[%clk 0:00:55.1]} 24... Rc7 {[%clk
0:01:41.2]} 25. Bd4 {[%clk 0:00:52.5]} 25... Rhc8 {[%clk 0:01:37]} 26. c3 {[%clk
0:00:45.9]} 26... f5 {[%clk 0:01:21.1]} 27. exf5 {[%clk 0:00:42.4]} 27... Bc6
{[%clk 0:01:18.7]} 28. Re1+ {[%clk 0:00:40.3]} 28... Kf7 {[%clk 0:01:17.9]} 29.
Rxa6 {[%clk 0:00:38]} 29... b4 {[%clk 0:01:13.2]} 30. cxb4 {[%clk 0:00:28.2]}
30... Bb5 {[%clk 0:01:12.9]} 31. Ra7 {[%clk 0:00:23.1]} 31... Bd3+ {[%clk
0:01:07.7]} 32. Ka1 {[%clk 0:00:16.2]} 32... Bxf5 {[%clk 0:01:08.6]} 33. Rxc7+
{[%clk 0:00:15.4]} 33... Rxc7 {[%clk 0:01:09.5]} 34. a4 {[%clk 0:00:15.6]} 34...
Rb7 {[%clk 0:01:08.6]} 35. Bc5 {[%clk 0:00:15.3]} 35... Bd7 {[%clk 0:01:05.8]}
36. b5 {[%clk 0:00:14.8]} 36... Kg6 {[%clk 0:01:02]} 37. b3 {[%clk 0:00:15.1]}
37... h5 {[%clk 0:00:59.5]} 38. Kb2 {[%clk 0:00:15.5]} 38... g4 {[%clk
0:00:59.5]} 39. hxg4 {[%clk 0:00:16.4]} 39... hxg4 {[%clk 0:01:00.4]} 40. fxg4
{[%clk 0:00:17.3]} 40... Bxg4 {[%clk 0:01:00.9]} 41. Re7 {[%clk 0:00:17.5]}
41... Rb8 {[%clk 0:00:59.9]} 42. b6 {[%clk 0:00:17.7]} 42... Bc8 {[%clk
0:00:58.8]} 43. a5 {[%clk 0:00:18.1]} 43... Ba6 {[%clk 0:00:58.9]} 44. Ra7
{[%clk 0:00:18.3]} 44... Bb5 {[%clk 0:00:58]} 45. Kc3 {[%clk 0:00:18.1]} 45...
Re8 {[%clk 0:00:57.7]} 46. Kb4 {[%clk 0:00:19]} 46... Bc6 {[%clk 0:00:58]} 47.
Rc7 {[%clk 0:00:19.1]} 47... Re4+ {[%clk 0:00:58.9]} 48. Ka3 {[%clk 0:00:19]}
48... Bd5 {[%clk 0:00:59]} 49. a6 {[%clk 0:00:19.4]} 49... Re3 {[%clk
0:00:59.1]} 50. a7 {[%clk 0:00:19.7]} 50... Rxb3+ {[%clk 0:01:00]} 51. Ka4
{[%clk 0:00:20]} 51... Rb1 {[%clk 0:00:59.9]} 52. Rc8 {[%clk 0:00:17.9]} 52...
Bxg2 {[%clk 0:01:00.8]} 53. a8=Q {[%clk 0:00:17]} 53... Bxa8 {[%clk 0:00:58.3]}
54. Rxa8 {[%clk 0:00:17.9]} 54... Ra1+ {[%clk 0:00:58.4]} 55. Ba3 {[%clk
0:00:18.6]} 55... Rb1 {[%clk 0:00:52.9]} 56. Ka5 {[%clk 0:00:18.8]} 56... Ra1
{[%clk 0:00:52.3]} 57. Kb5 {[%clk 0:00:18.7]} 57... Rb1+ {[%clk 0:00:52.4]} 58.
Kc6 {[%clk 0:00:19.3]} 58... Kf7 {[%clk 0:00:51.6]} 59. b7 {[%clk 0:00:19.6]}
59... Rc1+ {[%clk 0:00:51]} 60. Bc5 {[%clk 0:00:19.8]} 60... Rb1 {[%clk
0:00:50.3]} 61. b8=Q {[%clk 0:00:19.5]} 61... Ke6 {[%clk 0:00:50.4]} 62. Qxb1
{[%clk 0:00:19]} 62... Kf6 {[%clk 0:00:51.2]} 63. Ra2 {[%clk 0:00:19.4]} 1-0

[Event "Late-Titled-Tuesday-Blitz-October-17-2023"]
[Site "Chess.com"]
[Date "2023.10.17"]
[Round "5"]
[White "Binary010"]
[Black "aa175"]
[Result "1-0"]
[WhiteElo "2814"]
[BlackElo "2599"]
[TimeControl "180+1"]
[EndTime "14:55:16 PDT"]
[Termination "Binary010 won by resignation"]

1. e4 {[%clk 0:03:00.9]} 1... e5 {[%clk 0:03:00.6]} 2. Nf3 {[%clk 0:03:00.3]}
2... Nf6 {[%clk 0:03:01]} 3. Nxe5 {[%clk 0:02:57.4]} 3... d6 {[%clk 0:03:01.6]}
4. Nf3 {[%clk 0:02:56.8]} 4... Nxe4 {[%clk 0:03:02.3]} 5. d4 {[%clk 0:02:56.6]}
5... d5 {[%clk 0:03:02.9]} 6. Bd3 {[%clk 0:02:56.6]} 6... Bd6 {[%clk 0:03:03.6]}
7. O-O {[%clk 0:02:54.9]} 7... O-O {[%clk 0:03:04.3]} 8. c4 {[%clk 0:02:53.5]}
8... c6 {[%clk 0:03:05]} 9. Nc3 {[%clk 0:02:52.5]} 9... Nxc3 {[%clk 0:03:05.7]}
10. bxc3 {[%clk 0:02:53.1]} 10... dxc4 {[%clk 0:03:06.5]} 11. Bxc4 {[%clk
0:02:53.7]} 11... Bf5 {[%clk 0:03:07.2]} 12. Bg5 {[%clk 0:02:53.1]} 12... Qa5
{[%clk 0:03:07.5]} 13. d5 {[%clk 0:02:51.4]} 13... Ba3 {[%clk 0:03:08.2]} 14. d6
{[%clk 0:02:38.8]} 14... Qxc3 {[%clk 0:02:56.5]} 15. Bb3 {[%clk 0:02:13]} 15...
Bb2 {[%clk 0:02:49.9]} 16. Be7 {[%clk 0:01:55.8]} 16... Bxa1 {[%clk 0:02:25.2]}
17. Bxf8 {[%clk 0:01:35.9]} 17... Kxf8 {[%clk 0:02:23.7]} 18. Re1 {[%clk
0:00:55.4]} 18... Na6 {[%clk 0:02:13.5]} 19. Re7 {[%clk 0:00:48.5]} 19... Bg6
{[%clk 0:02:12.1]} 20. Ng5 {[%clk 0:00:32.9]} 20... Qd4 {[%clk 0:01:53.2]} 21.
Qf3 {[%clk 0:00:22.6]} 21... Qf6 {[%clk 0:01:44.7]} 22. Rxf7+ {[%clk 0:00:21.3]}
22... Bxf7 {[%clk 0:01:37.6]} 23. Nxh7+ {[%clk 0:00:21.4]} 23... Kg8 {[%clk
0:01:38.3]} 24. Nxf6+ {[%clk 0:00:19.1]} 24... Bxf6 {[%clk 0:01:39.2]} 25. Bxf7+
{[%clk 0:00:13]} 25... Kxf7 {[%clk 0:01:40.1]} 26. Qb3+ {[%clk 0:00:13]} 26...
Kg6 {[%clk 0:01:39]} 27. g3 {[%clk 0:00:07.7]} 27... Rd8 {[%clk 0:01:14.7]} 28.
Qxb7 {[%clk 0:00:06.2]} 28... Nc5 {[%clk 0:01:08]} 29. Qxc6 {[%clk 0:00:06]}
29... Ne6 {[%clk 0:01:01.5]} 30. Kg2 {[%clk 0:00:04.2]} 30... Nd4 {[%clk
0:00:54.3]} 31. Qe4+ {[%clk 0:00:04.5]} 31... Kf7 {[%clk 0:00:51.5]} 32. Qd5+
{[%clk 0:00:04.9]} 32... Kg6 {[%clk 0:00:49.4]} 33. g4 {[%clk 0:00:05.3]} 33...
Rh8 {[%clk 0:00:20.2]} 34. g5 {[%clk 0:00:05.5]} 34... Ne2 {[%clk 0:00:04.6]}
35. Qe4+ {[%clk 0:00:05]} 35... Kxg5 {[%clk 0:00:05.2]} 36. Qxe2 {[%clk
0:00:05.8]} 36... Rd8 {[%clk 0:00:05]} 37. Qe3+ {[%clk 0:00:06.1]} 37... Kf5
{[%clk 0:00:05]} 38. Qxa7 {[%clk 0:00:03.6]} 38... Rxd6 {[%clk 0:00:05.5]} 39.
Qc5+ {[%clk 0:00:03.9]} 39... Ke6 {[%clk 0:00:05.5]} 40. a4 {[%clk 0:00:03.7]}
40... Rd5 {[%clk 0:00:04.2]} 41. Qc6+ {[%clk 0:00:03.6]} 41... Rd6 {[%clk
0:00:04.8]} 42. Qe4+ {[%clk 0:00:03.9]} 42... Kd7 {[%clk 0:00:04.4]} 43. a5
{[%clk 0:00:04.8]} 43... Kc7 {[%clk 0:00:03.4]} 44. Qb4 {[%clk 0:00:03.8]} 44...
Ra6 {[%clk 0:00:03.1]} 45. Qb5 {[%clk 0:00:04.1]} 45... Ra7 {[%clk 0:00:01.9]}
46. Qb6+ {[%clk 0:00:04.4]} 1-0

[Event "Late-Titled-Tuesday-Blitz-October-17-2023"]
[Site "Chess.com"]
[Date "2023.10.17"]
[Round "5"]
[White "mishanick"]
[Black "mind1mover"]
[Result "1-0"]
[WhiteElo "3040"]
[BlackElo "2893"]
[TimeControl "180+1"]
[EndTime "14:55:17 PDT"]
[Termination "mishanick won by resignation"]

1. d4 {[%clk 0:03:00.1]} 1... d6 {[%clk 0:03:00.6]} 2. e4 {[%clk 0:03:00.1]}
2... Nf6 {[%clk 0:03:00.3]} 3. Nc3 {[%clk 0:03:00.2]} 3... e5 {[%clk 0:03:01.1]}
4. Nf3 {[%clk 0:03:00.5]} 4... Nbd7 {[%clk 0:03:01]} 5. Bc4 {[%clk 0:03:00.5]}
5... Be7 {[%clk 0:03:01.5]} 6. a4 {[%clk 0:02:59.3]} 6... O-O {[%clk 0:03:01]}
7. O-O {[%clk 0:02:59.3]} 7... c6 {[%clk 0:03:01.6]} 8. h3 {[%clk 0:02:43.1]}
8... h6 {[%clk 0:03:01.3]} 9. Be3 {[%clk 0:02:41.3]} 9... Re8 {[%clk 0:02:57.2]}
10. Re1 {[%clk 0:02:38.1]} 10... exd4 {[%clk 0:02:38.2]} 11. Bxd4 {[%clk
0:02:36.9]} 11... Nf8 {[%clk 0:02:35]} 12. Qd2 {[%clk 0:02:28.4]} 12... Be6
{[%clk 0:02:33.1]} 13. Bf1 {[%clk 0:02:24.1]} 13... Ng6 {[%clk 0:02:01.2]} 14.
a5 {[%clk 0:02:21.7]} 14... Qc7 {[%clk 0:01:56.2]} 15. a6 {[%clk 0:02:20.6]}
15... b5 {[%clk 0:01:53.6]} 16. e5 {[%clk 0:01:57.1]} 16... dxe5 {[%clk
0:01:53.5]} 17. Nxe5 {[%clk 0:01:58]} 17... Nxe5 {[%clk 0:01:52.9]} 18. Bxe5
{[%clk 0:01:58.9]} 18... Qb6 {[%clk 0:01:53.2]} 19. Bd4 {[%clk 0:01:48.8]} 19...
Qc7 {[%clk 0:01:30.1]} 20. Qe3 {[%clk 0:01:40.1]} 20... b4 {[%clk 0:01:15.8]}
21. Ne4 {[%clk 0:01:33.5]} 21... Nd5 {[%clk 0:01:16]} 22. Qf3 {[%clk 0:01:29.4]}
22... c5 {[%clk 0:01:11.2]} 23. Be3 {[%clk 0:01:02.8]} 23... Nxe3 {[%clk
0:01:10.2]} 24. Qxe3 {[%clk 0:01:03.2]} 24... Bf8 {[%clk 0:00:59.8]} 25. Rad1
{[%clk 0:00:51]} 25... Bf5 {[%clk 0:00:38.5]} 26. Qf3 {[%clk 0:00:47.3]} 26...
Be6 {[%clk 0:00:17.7]} 27. Ng3 {[%clk 0:00:34.3]} 27... Rad8 {[%clk 0:00:17.5]}
28. Nh5 {[%clk 0:00:27.4]} 28... Rxd1 {[%clk 0:00:17.1]} 29. Rxd1 {[%clk
0:00:27.5]} 29... Rd8 {[%clk 0:00:13.3]} 30. Re1 {[%clk 0:00:26.5]} 30... Qd6
{[%clk 0:00:05.9]} 31. Nf4 {[%clk 0:00:23.3]} 31... Bf5 {[%clk 0:00:02]} 32. Bc4
{[%clk 0:00:20.2]} 32... Qd4 {[%clk 0:00:02.6]} 33. b3 {[%clk 0:00:19.2]} 33...
Bh7 {[%clk 0:00:01.6]} 34. Bxf7+ {[%clk 0:00:12.1]} 34... Kh8 {[%clk 0:00:02.2]}
35. Bg6 {[%clk 0:00:11.3]} 35... Qf6 {[%clk 0:00:01.8]} 36. Bxh7 {[%clk
0:00:09.2]} 36... Kxh7 {[%clk 0:00:02.7]} 37. Qe4+ {[%clk 0:00:07.1]} 37... Kg8
{[%clk 0:00:03.2]} 38. Ne6 {[%clk 0:00:06.4]} 38... Re8 {[%clk 0:00:03]} 39. Qc4
{[%clk 0:00:06]} 39... Kh8 {[%clk 0:00:02.9]} 40. Re3 {[%clk 0:00:06.5]} 40...
Bd6 {[%clk 0:00:02.5]} 41. g3 {[%clk 0:00:07.2]} 41... Qf5 {[%clk 0:00:01.8]}
42. Nxg7 {[%clk 0:00:05.8]} 42... Rxe3 {[%clk 0:00:01.3]} 43. Nxf5 {[%clk
0:00:05.9]} 43... Re1+ {[%clk 0:00:02.2]} 44. Kg2 {[%clk 0:00:06.2]} 1-0